Cogmind - Beta 11 @@@ ROGUE MODE // 2022.04.15 @ 11:15:38 Player: Decinym Result: Destroyed by as-56544 with Assembled Rifle Performance ------------- Evolutions (0) 0 Regions Visited (2) 400 Robots Destroyed (18) 90 Value Destroyed (275) 275 Prototype IDs (1) 20 Alien Tech Used (0) 0 Bonus (0) 0 TOTAL SCORE: 785 Bonus ------- None Cogmind --------- Core Integrity 0/250 Matter 119/300 Energy 238/250 System Corruption 4% Temperature Warm (128) Movement Treading (240) Ox1 Location -10/Mines Parts ------- > --- POWER (1) -------- Ion Engine > --- PROPULSION (2) --- Light Treads > --- UTILITY (2) ------ Large Storage Unit > --- WEAPON (2) ------- Medium Laser Beam Cannon > --- INVENTORY (15) --- High-capacity Storage Unit Experimental Sensor Array Signal Interpreter Transport Network Coupler Weapon Shielding Medium Laser Beam Cannon Light Assault Rifle Light Assault Rifle Peak State ------------ > --- POWER ------------ Light Ion Engine > --- PROPULSION ------- Light Treads Light Treads > --- UTILITY ---------- Large Storage Unit Experimental Sensor Array > --- WEAPON ----------- Beam Cannon Light Assault Rifle > --- INVENTORY -------- Ion Engine Ion Engine Light Treads Light Treads High-capacity Storage Unit Signal Interpreter Transport Network Coupler Weapon Shielding Medium Laser Medium Laser Beam Cannon Beam Cannon Light Assault Rifle Rocket Launcher [Rating: 16] Favorites ----------- Power Light Ion Engine Engine Light Ion Engine Propulsion Light Treads Treads Light Treads Leg Aluminum Leg Utility Structural Scanner Device Structural Scanner Storage Large Storage Unit Protection Propulsion Shielding Weapon Light Assault Rifle Energy Gun Small Laser Energy Cannon Beam Cannon Ballistic Gun Light Assault Rifle Launcher Rocket Launcher Build | -11 -10 -10 ------- Run | Scr Mat Min Slots Evolved . | . . . Power . | . . . Propulsion . | . . . Utility . | . . . Weapon . | . . . Parts Attached 21 | . 10 11 Power 3 | . 1 2 Engine 3 | . 1 2 Core . | . . . Reactor . | . . . Propulsion 4 | . 2 2 Treads 4 | . 2 2 Leg . | . . . Wheel . | . . . Hover . | . . . Flight . | . . . Utility 6 | . 4 2 Device 4 | . 2 2 Storage 1 | . 1 . Processor . | . . . Hackware . | . . . Protection 1 | . 1 . Artifact . | . . . Weapon 8 | . 3 5 Energy Gun 2 | . 1 1 Energy Cannon 2 | . 1 1 Ballistic Gun 2 | . 1 1 Ballistic Cannon . | . . . Launcher 2 | . . 2 Special Weapon . | . . . Impact Weapon . | . . . Slashing Weapon . | . . . Piercing Weapon . | . . . Special Melee Weapon . | . . . Unidentified Prototypes 1 | . . 1 Parts Lost 10 | . 2 8 Power 3 | . 1 2 Propulsion 3 | . . 3 Utility 2 | . 1 1 Weapon 2 | . . 2 Highest Loss Streak 8 | . 1 8 To Critical Strikes . | . . . Average Slot Usage (%) 94 | . 94 96 Engine 13 | . 13 13 Treads 17 | . 13 26 Leg 10 | . 14 . Device 9 | . 8 12 Storage 14 | . 14 14 Energy Gun 9 | . 12 1 Energy Cannon 7 | . 5 14 Ballistic Gun 10 | . 10 11 Naked Turns . | . . . Heaviest Build 30 | 10 28 30 Greatest Support 40 | 20 40 40 Greatest Overweight (x) 1 | . . 1 Average Overweight (x) . | . . . Largest Inventory Capacity 15 | . 15 15 Average Capacity 12 | . 11 15 Most Carried 15 | . 12 15 Average Carried 9 | . 7 12 Final Capacity 15 | 8 15 15 Final Carried 12 | 6 12 9 Class Distribution -------------------- 100% | Mutant Dominant Class ---------------- Mutant | -10/Materials Mutant | -10/Mines Resources | -11 -10 -10 ----------- Run | Scr Mat Min Matter Collected 314 | 200 104 10 Remotely . | . . . Salvage Created 504 | . 355 149 Parts 29 | . 17 12 Haulers Intercepted 2 | . 2 . Recyclers Shooed . | . . . Parts Field Recycled . | . . . Retrieved Matter . | . . . Parts Self-Destructed . | . . . Prevented . | . . . Kills | -11 -10 -10 ------- Run | Scr Mat Min Combat Hostiles Destroyed 26 | . 7 19 Guns 8 | . 7 1 Cannons 5 | . . 5 AOE 13 | . . 13 Classes Destroyed 7 | . 5 2 Worker 1 | . 1 . Builder 1 | . . 1 Hauler 2 | . 2 . Operator 1 | . 1 . Swarmer 9 | . 3 6 Grunt 4 | . 4 . Assembled 13 | . . 13 Best Kill Streak 15 | . 4 15 Combat Bots Only 14 | . 3 14 Max Kills in Single Turn 3 | . 2 3 Gunslinging 1 | . 1 . Exploded 3 | . . 3 Melee . | . . . Uniques/NPCs Destroyed . | . . . Combat | -11 -10 -10 -------- Run | Scr Mat Min Damage Taken 1524 | . 373 1151 Core 252 | . 80 172 Absorbed by Shields . | . . . Core Remaining (%) 100 | 100 . . Volleys Fired 67 | . 38 29 Largest 2 | . 2 2 Hottest 120 | . 90 120 Shots Fired 124 | . 76 48 Gun 92 | . 75 17 Cannon 22 | . 1 21 Launcher 10 | . . 10 Special . | . . . Kinetic 20 | . 10 10 Thermal 94 | . 66 28 Explosive 10 | . . 10 Electromagnetic . | . . . Robot Hit Streak 12 | . 12 5 Robot Miss Streak 5 | . 2 5 Penetration Max . | . . . Secondary Targets 2 | . 2 . Max Gunslinging Chain 1 | . 1 . Shots Hit Robots 70 | . 48 22 Core Hits 53 | . 19 34 Critical Kills . | . . . Critical Parts Destroyed . | . . . Critical Strikes 4 | . 4 . Burn 4 | . 4 . Melee Attacks . | . . . Impact . | . . . Slashing . | . . . Piercing . | . . . Sneak Attacks . | . . . Combat Hostiles . | . . . Follow-up Attacks . | . . . Damage Inflicted 1882 | . 585 1297 Guns 641 | . 585 56 Cannons 209 | . . 209 Explosions 1032 | . . 1032 Melee . | . . . Ramming . | . . . Kinetic 50 | . 44 6 Thermal 800 | . 541 259 Explosive 1032 | . . 1032 Electromagnetic . | . . . Impact . | . . . Slashing . | . . . Piercing . | . . . Highest Corruption 4 | . . 4 Average Corruption 4 | . . 4 Corruption Purged . | . . . Corruption Blocked . | . . . Effects 1 | . . 1 Data Loss (minor) 1 | . . 1 Overload Shots . | . . . Overflow Damage 13 | . . 13 Projectiles . | . . . Explosions 13 | . . 13 Melee . | . . . Knockbacks . | . . . Impact . | . . . Kinetic . | . . . Secondary . | . . . Self-Inflicted Damage 115 | . . 115 Shots 3 | . . 3 Rammed . | . . . Targets Rammed . | . . . Kicked . | . . . Crushed . | . . . Highest Temperature 350 | . 350 160 Average Temperature 97 | . 112 66 Received Heat Transfer 171 | . 171 . Effects 1 | . 1 . Damage (minor) 1 | . 1 . Siege Activations . | . . . Robots Corrupted . | . . . Combat Hostiles . | . . . Parts Fried . | . . . Impact Corruptions . | . . . Robots Melted . | . . . Combat Hostiles . | . . . Parts Melted 5 | . 5 . Heat Transferred 2337 | . 1745 592 Parts Sabotaged . | . . . Parts Stolen . | . . . Parts Stripped . | . . . Power Chain Reactions . | . . . Missiles Intercepted . | . . . Alert | -11 -10 -10 ------- Run | Scr Mat Min Peak Influence 267 | . 157 267 Initial . | . . . Average 71 | . 67 79 Maximum Alert Level 1 | . . 1 Low Security (%) 93 | . 100 79 Level 1 6 | . . 20 Level 2 . | . . . Level 3 . | . . . Level 4 . | . . . Level 5 . | . . . High Security . | . . . Max Security . | . . . Squads Dispatched 2 | . 2 . Investigation 1 | . 1 . Extermination . | . . . Reinforcement 1 | . 1 . Assault . | . . . Garrison . | . . . Intercept . | . . . Searches Triggered . | . . . Construction Impeded . | . . . Haulers Reinforced . | . . . Active Scanning Responses . | . . . Cargo Convoy Interrupts . | . . . Stealth | -11 -10 -10 --------- Run | Scr Mat Min Distress Signals 1 | . 1 . Communications Jammed . | . . . Distress Signals . | . . . Times Spotted 40 | . 17 23 Peak Tracking Total 20 | . 5 20 Tactical Retreats 4 | . . 4 Traps | -11 -10 -10 ------- Run | Scr Mat Min Traps Triggered 1 | . 1 . Indirectly . | . . . Trap Hack Attempts . | . . . Triggered . | . . . Disarmed . | . . . Reprogrammed . | . . . Reused . | . . . Traps Extracted . | . . . Installed . | . . . Triggered . | . . . Machines | -11 -10 -10 ---------- Run | Scr Mat Min Machines Disabled 1 | . . 1 Max in Single Turn 1 | . . 1 Machines Sabotaged . | . . . Garrisons Compromised . | . . . Overloaded Fab Kills . | . . . Hacking | -11 -10 -10 --------- Run | Scr Mat Min Machines Accessed 2 | . 2 . Terminals 2 | . 2 . Fabricators . | . . . Repair Stations . | . . . Recycling Units . | . . . Scanalyzers . | . . . Garrison Access . | . . . Total Hacks 4 | . 4 . Successful 2 | . 2 . Failed 2 | . 2 . Catastrophic . | . . . Database Lockouts . | . . . Manual 1 | . 1 . Terminals 4 | . 4 . Fabricators . | . . . Repair Stations . | . . . Recycling Units . | . . . Scanalyzers . | . . . Garrison Access . | . . . Terminal Hacks 2 | . 2 . Branch Access Points 1 | . 1 . Hauler Manifests 1 | . 1 . Fabricator Hacks . | . . . Repair Station Hacks . | . . . Recycling Unit Hacks . | . . . Scanalyzer . | . . . Garrison Access Hacks . | . . . Unauthorized Hacks . | . . . Terminals . | . . . Fabricators . | . . . Repair Stations . | . . . Recycling Units . | . . . Scanalyzers . | . . . Garrison Access . | . . . Data Cores Recovered . | . . . Used . | . . . Hacking Detections 1 | . 1 . Full Trace Events . | . . . Feedback Events . | . . . Feedback Blocked . | . . . Robot Schematics Acquired . | . . . Robots Built . | . . . Authchips . | . . . Time . | . . . Total Robot Build Rating . | . . . Part Schematics Acquired . | . . . Parts Built . | . . . Authchips . | . . . Time . | . . . Total Part Build Rating . | . . . Parts Repaired . | . . . Time . | . . . Parts Recycled . | . . . Recycled Matter . | . . . Retrieved Matter . | . . . Retrieved Components . | . . . Parts Scanalyzed . | . . . Part Schematics Acquired . | . . . Parts Damaged . | . . . Bothacking | -11 -10 -10 ------------ Run | Scr Mat Min Used RIF Installer . | . . . Robots Hacked . | . . . Non-combat . | . . . Combat . | . . . Robot Hacks Applied . | . . . Relay Couplers Released . | . . . Fabnet Peak Effective % . | . . . Robots Rewired . | . . . Allies Hacked . | . . . Hacks Repelled . | . . . Allies | -11 -10 -10 -------- Run | Scr Mat Min Total Allies . | . . . Largest Group . | . . . Highest-Rated Group . | . . . Highest-Rated Ally . | . . . Total Orders . | . . . Ally Attacks . | . . . Total Damage . | . . . Kills . | . . . Allies Corrupted . | . . . Allies Melted . | . . . Intel | -11 -10 -10 ------- Run | Scr Mat Min Robot Analysis Total . | . . . Derelict Logs Recovered 1 | . . 1 Drone Launches . | . . . Drone Recoveries . | . . . Exploration | -11 -10 -10 ------------- Run | Scr Mat Min Turns Passed 1286 | . 888 398 Spaces Moved 724 | 1 536 187 Core . | . . . Treads 433 | . 246 187 Legs 291 | 1 290 . Wheels . | . . . Hover . | . . . Flight . | . . . Fastest Speed 120 | 120 120 160 Average Speed 144 | 120 138 163 Slowest Speed 240 | 120 160 240 Overloaded Moves . | . . . Propulsion Burnouts . | . . . Robots Hopped . | . . . Cave-ins Triggered . | . . . Exploration Rate (%) 31 | 2 44 49 Regions Visited 2 Branch Regions 1 Pre-discovered Areas . | . . . Known Exits Taken 1 | . 1 . Unknown Exits Taken 1 | 1 . . Scrap Searched 1 | . . 1 Spaces Dug . | . . . Terrain Destroyed 60 | . . 60 Melee . | . . . Projectile . | . . . AOE 60 | . . 60 Terrain Rammed . | . . . Walls Destroyed . | . . . Machines Disabled . | . . . Actions | -11 -10 -10 --------- Run | Scr Mat Min Total 841 | . 609 232 Wait 7 | . 6 1 Move 722 | . 535 187 Hop . | . . . Pick Up 13 | . 11 2 Fast Attach 9 | . 7 2 Attach 7 | . 1 6 Detach 1 | . . 1 Swap 5 | . 2 3 Drop 10 | . 9 1 Fire 67 | . 38 29 Melee . | . . . Ram . | . . . Kick . | . . . Crush . | . . . Escape Stasis . | . . . Rewire . | . . . Trap . | . . . Miscellaneous . | . . . Route ------- -11/Scrapyard -10/Materials (discovered 2 exits: [*Mat] / *Min) -10/Mines (discovered 1 exit: [*Mat]) History --------- Turn | Location | Event 1 | -11/Scrapyard | Discovered new exit (range 0) 1 | -11/Scrapyard | Entered Materials 108 | -10/Materials | Identified exit to Mines 311 | -10/Materials | Build established: Mutant 381 | -10/Materials | Discovered new exit (range 12) 889 | -10/Materials | Entered Mines 967 | -10/Mines | Received a Rocket Launcher from a helpful Derelict 1004 | -10/Mines | Learned Materials stockpile data 1041 | -10/Mines | Discovered new exit (range 3) 1169 | -10/Mines | Found a damaged Exp. Sensor Array with a note attached 1173 | -10/Mines | Found Prototype Device 1173 | -10/Mines | Identified Exp. Sensor Array 1213 | -10/Mines | Assembled infested the area 1224 | -10/Mines | Core integrity fell below 50% 1253 | -10/Mines | Destroyed 14 combat bots 1265 | -10/Mines | Core integrity fell below 20% 1284 | -10/Mines | Lost 8 parts (2p3n1u2w) 1287 | -10/Mines | Destroyed by as-56544 with Assembled Rifle Last Messages --------------- 01230_ as-43747 destroyed. 01232_ Destroyed Asb. Hover Unit. 01232_ as-12042 destroyed. 01232_ Rocket Launcher destroyed. 01232_ Destroyed Rocket Launcher. 01232_ as-62637 destroyed. 01239_ The unstable cave ceiling collapses. 01239_ Beam Cannon destroyed. 01239_ Lgt. Treads destroyed. 01240_ Structural Scanner destroyed. 01242_ Lgt. Treads destroyed. 01244_ The unstable cave ceiling collapses. 01252_ Lgt. Treads destroyed. 01252_ System corrupted by crushing effect (+4). 01253_ The unstable cave ceiling collapses. 01253_ Ion Engine destroyed. 01259_ as-74703 destroyed. 01260_ The unstable cave ceiling collapses. 01279_ System corrupted: Component data lost. 01285_ as-76089 destroyed. Map ----- +----------------------------------------------------+ | ???????????????? ???## ##????################ | | ???????????????????????### ##????################ | | ???????????????????????### ##???????????????????? | | ????????????????????????## ##???????????????????? | | ????????????????????????## ##???????????????????? | | ????????????????????????## ##???????????????????? | | ????????????????????????## ##???????????????????? | | ????????????????????????## ####?????????????????? | | ????????????????????????## #####????????????????? | | ????????????????????????## ####???????????????? | | ????????????????????????## ####??????????????? | | ????????????????????????## ###??????????????? | | ????????????????????????### ##??????????????? | | ????????????????????????#### ###?????????????? | | ?????????????????????????#### ###?????????????? | | ??????????????????????????### ##?????????????? | | ???????????????????????????### ##?????????????? | | ???????????????????????????#### ###?????????????? | | ???????????## ???????????### ###### ???????? | | ????????##################??### ##### ##???????? | | ??????? ##### # ############### ##???????? | | ???#### ## #### ###### #########???????? | | ?#### # ##########???????? | | ?## =% # # ####??????????????? | | ?## [ % aa ####???????????????? | | ? # % ####@ ###????????????????? | | ? # ####### ###?????????????????? | | ? % # # ############?????????????????? | | ?? ## ###???######??????????????????? | | ??? #########???????????????????????????? | | ?? ?########????????????????????????????? | | ?? ##?????????????????????????????????????? | | ?? ### ###?????????????????????????????????????? | | ???######????????????????????????????????????????? | | ????#####????????????????????????????????????????? | | | | | | | | | | | | | | | | | | | | | | | | | | | | | | | +----------------------------------------------------+ Best States ------------- Heat Dissipation 25 Energy Generation 10 Energy Capacity 250 Matter Stores 300 Matter Capacity 300 Sight Range 16 Terrain Scan Density 10 Propulsion Shielding 33 Evasion (%) 55 Recoil Reduction 2 Item Schematics ----------------- None Robot Schematics ------------------ None Fabricated ------------ Nothing Alien Tech Used ----------------- None Achievements -------------- None Challenges ------------ None Game ------ Seed LinkedDecoyCalibrator Manual? 0 Play Time 00:09:29 Cumulative 309.8 hours Start 2022.04.15 @ 11:08:01 End 2022.04.15 @ 11:15:38 Sessions 1 Manual Loads 0 Difficulty Rogue Special Mode None Game No. 343 Rogue 343 Adventurer 0 Explorer 0 Win Type - Total 27 Types 16/3/2/1/2/0/3/0/0 Lore% 85 Gallery% 82 Achievement% 80 Wizard Run 0 Options --------- ASCII 0 Keyboard 0 Movement Arrows Keybinds 0 Fullscreen 2 Font 18/SmallcapsGlow Map View 76x50 Tactical HUD 1 Map Filters NONE Filters NONE Steam 1 RUN: 9b2aa4c8-6b34-4695-8e55-1d6bb4997cc3